[Event "Latvijas 2022. gada jauniešu čempionāta fināls"]
[Site "Riga, Latvia"]
[Date "2022.06.15"]
[Round "7.23"]
[White "Krastins, Arturs"]
[Black "Fridensteins-Bridins, Atis"]
[Result "1-0"]
[TimeControl "3600+30"]
[WhiteElo "1506"]
[BlackElo "1704"]

1. d4 {[%clk 01:00:58]} Nf6 {[%clk 01:00:52]} {[%emt 00:00:08]} 2. Bf4 {[%clk
01:01:24]} {[%emt 00:00:04]} d6 {[%clk 01:00:37]} {[%emt 00:00:46]} 3. e3
{[%clk 01:01:41]} {[%emt 00:00:12]} g6 {[%clk 01:00:55]} {[%emt 00:00:13]} 4.
Nf3 {[%clk 01:01:58]} {[%emt 00:00:12]} Bg7 {[%clk 01:01:16]} {[%emt 00:00:09]}
5. c4 {[%clk 01:02:23]} {[%emt 00:00:06]} O-O {[%clk 01:00:09]} {[%emt
00:01:36]} 6. h3 {[%clk 01:02:42]} {[%emt 00:00:11]} c5 {[%clk 00:59:32]}
{[%emt 00:01:07]} 7. Nc3 {[%clk 01:02:52]} {[%emt 00:00:21]} Nc6 {[%clk
00:56:20]} {[%emt 00:03:42]} 8. d5 {[%clk 01:00:18]} {[%emt 00:03:04]} Nb8
{[%clk 00:56:00]} {[%emt 00:00:50]} 9. Be2 {[%clk 01:00:02]} {[%emt 00:00:45]}
Nbd7 {[%clk 00:54:16]} {[%emt 00:02:14]} 10. a3 {[%clk 01:00:03]} {[%emt
00:00:30]} a6 {[%clk 00:40:20]} {[%emt 00:14:27]} 11. Rb1 {[%clk 00:58:35]}
{[%emt 00:01:56]} b5 {[%clk 00:38:42]} {[%emt 00:02:09]} 12. cxb5 {[%clk
00:58:28]} {[%emt 00:00:37]} Nb6 {[%clk 00:38:54]} {[%emt 00:00:18]} 13. bxa6
{[%clk 00:58:23]} {[%emt 00:00:36]} Bf5 {[%clk 00:38:23]} {[%emt 00:01:00]} 14.
Bd3 {[%clk 00:55:16]} {[%emt 00:03:37]} Nbxd5 {[%clk 00:37:41]} {[%emt
00:01:12]} 15. Nxd5 {[%clk 00:55:35]} {[%emt 00:00:11]} Nxd5 {[%clk 00:38:09]}
{[%emt 00:00:02]} 16. Bxf5 {[%clk 00:53:07]} {[%emt 00:02:58]} Nxf4 {[%clk
00:35:07]} {[%emt 00:03:31]} 17. Be4 {[%clk 00:43:22]} {[%emt 00:10:11]} d5
{[%clk 00:35:17]} {[%emt 00:00:23]} 18. exf4 {[%clk 00:43:40]} {[%emt
00:00:13]} dxe4 {[%clk 00:35:41]} {[%emt 00:00:06]} 19. Ng5 {[%clk 00:33:52]}
{[%emt 00:10:17]} Qa5+ {[%clk 00:28:32]} {[%emt 00:07:40]} 20. Qd2 {[%clk
00:33:52]} {[%emt 00:00:28]} Qxd2+ {[%clk 00:25:14]} {[%emt 00:03:51]} 21. Kxd2
{[%clk 00:34:04]} {[%emt 00:00:18]} Rfd8+ {[%clk 00:25:42]} {[%emt 00:00:02]}
22. Kc2 {[%clk 00:32:54]} {[%emt 00:01:37]} Rxa6 {[%clk 00:25:04]} {[%emt
00:01:11]} 23. Rhd1 {[%clk 00:28:17]} {[%emt 00:05:05]} Rd4 {[%clk 00:20:05]}
{[%emt 00:05:31]} 24. Rxd4 {[%clk 00:24:11]} {[%emt 00:04:36]} Bxd4 {[%clk
00:20:33]} {[%emt 00:00:02]} 25. Nxe4 {[%clk 00:24:02]} {[%emt 00:00:39]} f5
{[%clk 00:20:16]} {[%emt 00:00:47]} 26. Nd2 {[%clk 00:20:27]} {[%emt 00:04:02]}
Bxf2 {[%clk 00:20:13]} {[%emt 00:00:36]} 27. Rf1 {[%clk 00:20:43]} {[%emt
00:00:08]} Bh4 {[%clk 00:17:03]} {[%emt 00:03:45]} 28. Rf3 {[%clk 00:19:40]}
{[%emt 00:01:32]} Bf6 {[%clk 00:17:00]} {[%emt 00:00:34]} 29. Nc4 {[%clk
00:18:15]} {[%emt 00:01:53]} Re6 {[%clk 00:16:51]} {[%emt 00:00:41]} 30. Re3
{[%clk 00:18:32]} {[%emt 00:00:09]} Kf7 {[%clk 00:15:53]} {[%emt 00:01:33]} 31.
Rxe6 {[%clk 00:18:01]} {[%emt 00:01:01]} Kxe6 {[%clk 00:16:21]} {[%emt
00:00:01]} 32. Kd3 {[%clk 00:15:16]} {[%emt 00:03:14]} Kd5 {[%clk 00:10:51]}
{[%emt 00:06:01]} 33. a4 {[%clk 00:14:04]} {[%emt 00:01:43]} Bd4 {[%clk
00:09:02]} {[%emt 00:02:19]} 34. a5 {[%clk 00:12:06]} {[%emt 00:02:27]} g5
{[%clk 00:07:39]} {[%emt 00:01:54]} 35. a6 {[%clk 00:11:29]} {[%emt 00:01:08]}
Kc6 {[%clk 00:07:53]} {[%emt 00:00:15]} 36. b4 {[%clk 00:11:33]} {[%emt
00:00:26]} gxf4 {[%clk 00:07:05]} {[%emt 00:01:17]} 37. b5+ {[%clk 00:11:39]}
{[%emt 00:00:24]} Kc7 {[%clk 00:07:29]} {[%emt 00:00:06]} 38. b6+ {[%clk
00:11:03]} {[%emt 00:01:07]} Kb8 {[%clk 00:06:43]} {[%emt 00:01:15]} 39. Na5
{[%clk 00:10:11]} {[%emt 00:01:22]} e5 {[%clk 00:06:51]} {[%emt 00:00:23]} 40.
Nc6+ {[%clk 00:07:47]} {[%emt 00:02:54]} Kc8 {[%clk 00:07:20]} {[%emt
00:00:01]} 41. b7+ {[%clk 00:07:59]} {[%emt 00:00:18]} 1-0

[Event "Latvijas 2022. gada jauniešu čempionāta fināls"]
[Site "Riga, Latvia"]
[Date "2022.06.15"]
[Round "7.24"]
[White "Stinka, Gustavs"]
[Black "Steinbergs, Raivo"]
[Result "1-0"]
[TimeControl "3600+30"]
[WhiteElo "1086"]
[BlackElo "1397"]

1. e4 {[%clk 01:00:59]} {[%emt 00:57:44]} c5 {[%clk 01:00:50]} {[%emt
00:00:11]} 2. c3 {[%clk 01:01:24]} {[%emt 00:00:05]} Nc6 {[%clk 01:00:42]}
{[%emt 00:00:38]} 3. Nf3 {[%clk 01:01:41]} {[%emt 00:00:14]} d6 {[%clk
01:00:48]} {[%emt 00:00:23]} 4. d4 {[%clk 01:02:05]} {[%emt 00:00:06]} cxd4
{[%clk 01:00:46]} {[%emt 00:00:32]} 5. cxd4 {[%clk 01:02:28]} {[%emt 00:00:06]}
g6 {[%clk 01:00:03]} {[%emt 00:01:14]} 6. d5 {[%clk 01:02:05]} {[%emt
00:00:53]} Ne5 {[%clk 00:59:00]} {[%emt 00:01:33]} 7. Nxe5 {[%clk 01:02:08]}
{[%emt 00:00:26]} dxe5 {[%clk 00:59:25]} {[%emt 00:00:07]} 8. Qa4+ {[%clk
01:02:06]} {[%emt 00:00:31]} Bd7 {[%clk 00:59:24]} {[%emt 00:00:31]} 9. Bb5
{[%clk 01:02:25]} {[%emt 00:00:12]} Nf6 {[%clk 00:59:43]} {[%emt 00:00:11]} 10.
O-O {[%clk 01:02:18]} {[%emt 00:00:35]} a6 {[%clk 00:58:08]} {[%emt 00:02:06]}
11. Bxd7+ {[%clk 01:02:34]} {[%emt 00:00:14]} Nxd7 {[%clk 00:58:32]} {[%emt
00:00:06]} 12. Be3 {[%clk 01:02:24]} {[%emt 00:00:40]} Bg7 {[%clk 00:57:58]}
{[%emt 00:01:04]} 13. Nd2 {[%clk 01:02:37]} {[%emt 00:00:17]} O-O {[%clk
00:58:06]} {[%emt 00:00:23]} 14. Rac1 {[%clk 01:02:51]} {[%emt 00:00:15]} f5
{[%clk 00:57:03]} {[%emt 00:01:34]} 15. f3 {[%clk 01:03:07]} {[%emt 00:00:13]}
fxe4 {[%clk 00:56:21]} {[%emt 00:01:12]} 16. fxe4 {[%clk 01:03:12]} {[%emt
00:00:26]} Nf6 {[%clk 00:52:05]} {[%emt 00:04:46]} 17. Qb4 {[%clk 01:01:41]}
{[%emt 00:02:01]} b5 {[%clk 00:46:52]} {[%emt 00:05:43]} 18. Bc5 {[%clk
01:01:29]} {[%emt 00:00:41]} a5 {[%clk 00:44:48]} {[%emt 00:02:35]} 19. Qxb5
{[%clk 01:00:10]} {[%emt 00:01:49]} Rb8 {[%clk 00:44:58]} {[%emt 00:00:15]} 20.
Qa6 {[%clk 01:00:35]} {[%emt 00:00:10]} Rxb2 {[%clk 00:44:29]} {[%emt
00:00:59]} 21. Qe6+ {[%clk 01:00:58]} {[%emt 00:00:07]} Kh8 {[%clk 00:43:32]}
{[%emt 00:01:27]} 22. Bxe7 {[%clk 01:01:01]} {[%emt 00:00:26]} Qb6+ {[%clk
00:40:11]} {[%emt 00:03:52]} 23. Qxb6 {[%clk 01:01:14]} {[%emt 00:00:17]} Rxb6
{[%clk 00:40:37]} {[%emt 00:00:04]} 24. Bxf8 {[%clk 01:01:31]} {[%emt
00:00:13]} Bxf8 {[%clk 00:40:44]} {[%emt 00:00:23]} 25. Nc4 {[%clk 01:01:47]}
{[%emt 00:00:14]} Bc5+ {[%clk 00:40:46]} {[%emt 00:00:28]} 26. Kh1 {[%clk
01:02:09]} {[%emt 00:00:08]} Ra6 {[%clk 00:40:46]} {[%emt 00:00:30]} 27. d6
{[%clk 01:00:19]} {[%emt 00:02:20]} Nxe4 {[%clk 00:39:53]} {[%emt 00:01:23]} 28.
d7 {[%clk 01:00:34]} {[%emt 00:00:15]} Ra8 {[%clk 00:38:18]} {[%emt 00:02:04]}
29. Nxe5 {[%clk 01:00:56]} {[%emt 00:00:09]} Rb8 {[%clk 00:35:27]} {[%emt
00:03:21]} 30. Nf7+ {[%clk 01:01:15]} {[%emt 00:00:11]} Kg7 {[%clk 00:35:56]}
31. d8=Q {[%clk 01:01:35]} {[%emt 00:00:12]} Rxd8 {[%clk 00:35:46]} {[%emt
00:00:40]} 32. Nxd8 {[%clk 01:01:56]} {[%emt 00:00:09]} Bb6 {[%clk 00:35:06]}
{[%emt 00:01:10]} 33. Ne6+ {[%clk 01:02:14]} {[%emt 00:00:11]} Kh6 {[%clk
00:35:26]} {[%emt 00:00:10]} 34. Rc4 {[%clk 01:02:31]} {[%emt 00:00:12]} Nf2+
{[%clk 00:35:11]} {[%emt 00:00:47]} 35. Rxf2 {[%clk 01:02:44]} {[%emt
00:00:17]} Bxf2 {[%clk 00:35:39]} {[%emt 00:00:02]} 36. g3 {[%clk 01:03:08]}
{[%emt 00:00:05]} g5 {[%clk 00:35:58]} {[%emt 00:00:11]} 37. Kg2 {[%clk
01:03:09]} {[%emt 00:00:29]} Ba7 {[%clk 00:36:02]} {[%emt 00:00:24]} 38. Rg4
{[%clk 01:03:11]} {[%emt 00:00:28]} Be3 {[%clk 00:35:17]} {[%emt 00:01:16]} 39.
h4 {[%clk 01:03:19]} {[%emt 00:00:23]} a4 {[%clk 00:34:55]} {[%emt 00:00:53]}
40. hxg5+ {[%clk 01:03:30]} {[%emt 00:00:17]} Kg6 {[%clk 00:34:18]} {[%emt
00:01:06]} 41. Rxa4 {[%clk 01:03:49]} {[%emt 00:00:13]} Kh5 {[%clk 00:33:54]}
{[%emt 00:00:49]} 42. Rh4+ {[%clk 01:03:38]} {[%emt 00:00:44]} Kg6 {[%clk
00:34:18]} {[%emt 00:00:08]} 43. Rh6+ {[%clk 01:03:44]} {[%emt 00:00:23]} Kf5
{[%clk 00:34:15]} {[%emt 00:00:34]} 44. Kf3 {[%clk 01:04:06]} {[%emt 00:00:08]}
Bc1 {[%clk 00:33:40]} {[%emt 00:01:05]} 45. g4+ {[%clk 01:04:14]} {[%emt
00:00:21]} Ke5 {[%clk 00:34:10]} {[%emt 00:00:02]} 46. Nd8 {[%clk 01:04:25]}
{[%emt 00:00:17]} 1-0

[Event "Latvijas 2022. gada jauniešu čempionāta fināls"]
[Site "Riga, Latvia"]
[Date "2022.06.15"]
[Round "7.25"]
[White "Podojniks, Marks Ernests"]
[Black "Lahs, Einars"]
[Result "1-0"]
[TimeControl "3600+30"]
[WhiteElo "1372"]
[BlackElo "1675"]

1. e4 {[%clk 01:00:59]} {[%emt 00:01:00]} c5 {[%clk 01:00:56]} {[%emt
00:00:05]} 2. Nf3 {[%clk 01:01:25]} {[%emt 00:00:04]} e6 {[%clk 01:01:19]}
{[%emt 00:00:06]} 3. Nc3 {[%clk 01:01:50]} {[%emt 00:00:05]} Nc6 {[%clk
01:01:44]} {[%emt 00:00:05]} 4. d4 {[%clk 01:02:12]} {[%emt 00:00:08]} cxd4
{[%clk 01:02:10]} {[%emt 00:00:05]} 5. Nxd4 {[%clk 01:02:39]} {[%emt 00:00:03]}
Nf6 {[%clk 01:02:33]} {[%emt 00:00:06]} 6. Nxc6 {[%clk 01:03:00]} {[%emt
00:00:08]} bxc6 {[%clk 01:02:58]} {[%emt 00:00:07]} 7. e5 {[%clk 01:03:14]}
{[%emt 00:00:16]} Nd5 {[%clk 01:03:25]} {[%emt 00:00:02]} 8. Ne4 {[%clk
01:03:13]} {[%emt 00:00:31]} Qc7 {[%clk 01:03:09]} {[%emt 00:00:45]} 9. f4
{[%clk 01:03:32]} {[%emt 00:00:12]} a5 {[%clk 01:01:38]} {[%emt 00:02:01]} 10.
c4 {[%clk 00:59:16]} {[%emt 00:04:46]} Nb4 {[%clk 00:59:21]} {[%emt 00:02:47]}
11. a3 {[%clk 00:55:21]} {[%emt 00:04:25]} Na6 {[%clk 00:59:28]} {[%emt
00:00:23]} 12. Be3 {[%clk 00:54:57]} {[%emt 00:00:54]} Qb7 {[%clk 00:58:10]}
{[%emt 00:01:46]} 13. Rb1 {[%clk 00:52:26]} {[%emt 00:03:03]} Rb8 {[%clk
00:57:47]} {[%emt 00:00:53]} 14. c5 {[%clk 00:50:01]} {[%emt 00:02:55]} Nc7
{[%clk 00:55:28]} {[%emt 00:02:48]} 15. Qg4 {[%clk 00:40:17]} {[%emt 00:10:13]}
Nd5 {[%clk 00:51:04]} {[%emt 00:04:56]} 16. Bd2 {[%clk 00:39:25]} {[%emt
00:01:22]} Qa7 {[%clk 00:40:45]} {[%emt 00:10:48]} 17. Bc4 {[%clk 00:37:32]}
{[%emt 00:02:24]} Ba6 {[%clk 00:35:54]} {[%emt 00:05:21]} 18. Bxd5 {[%clk
00:36:11]} {[%emt 00:01:51]} cxd5 {[%clk 00:36:15]} {[%emt 00:00:10]} 19. Nd6+
{[%clk 00:36:12]} {[%emt 00:00:28]} Bxd6 {[%clk 00:36:18]} {[%emt 00:00:27]} 20.
Qxg7 {[%clk 00:35:27]} {[%emt 00:01:15]} Bxe5 {[%clk 00:36:22]} {[%emt
00:00:27]} 21. fxe5 {[%clk 00:35:49]} {[%emt 00:00:07]} Rf8 {[%clk 00:36:25]}
{[%emt 00:00:27]} 22. Bh6 {[%clk 00:35:30]} {[%emt 00:00:49]} Qxc5 {[%clk
00:35:47]} {[%emt 00:01:09]} 23. Qxf8+ {[%clk 00:35:53]} {[%emt 00:00:06]} Qxf8
{[%clk 00:36:13]} {[%emt 00:00:04]} 24. Bxf8 {[%clk 00:36:18]} {[%emt
00:00:05]} Kxf8 {[%clk 00:36:39]} {[%emt 00:00:05]} 25. b4 {[%clk 00:36:04]}
{[%emt 00:00:44]} Ke7 {[%clk 00:36:15]} {[%emt 00:00:54]} 26. Kd2 {[%clk
00:36:17]} {[%emt 00:00:17]} a4 {[%clk 00:36:23]} {[%emt 00:00:22]} 27. Rhc1
{[%clk 00:36:21]} {[%emt 00:00:26]} Bc4 {[%clk 00:36:42]} {[%emt 00:00:12]} 28.
Rc3 {[%clk 00:35:23]} {[%emt 00:01:23]} Rc8 {[%clk 00:35:36]} {[%emt 00:01:40]}
29. Rh3 {[%clk 00:34:17]} {[%emt 00:01:35]} Rh8 {[%clk 00:30:51]} {[%emt
00:05:16]} 30. b5 {[%clk 00:33:48]} {[%emt 00:01:00]} d6 {[%clk 00:30:48]}
{[%emt 00:00:33]} 31. exd6+ {[%clk 00:33:52]} {[%emt 00:00:25]} Kxd6 {[%clk
00:31:16]} {[%emt 00:00:02]} 32. Rb4 {[%clk 00:33:38]} {[%emt 00:00:44]} h5
{[%clk 00:21:34]} {[%emt 00:10:12]} 33. b6 {[%clk 00:33:20]} {[%emt 00:00:48]}
Kc6 {[%clk 00:21:33]} {[%emt 00:00:31]} 34. b7 {[%clk 00:32:17]} {[%emt
00:01:32]} Kc7 {[%clk 00:21:56]} {[%emt 00:00:08]} 35. Rxh5 {[%clk 00:32:04]}
{[%emt 00:00:42]} Rf8 {[%clk 00:21:19]} {[%emt 00:01:08]} 36. Rg5 {[%clk
00:30:53]} {[%emt 00:01:39]} Kb8 {[%clk 00:21:14]} {[%emt 00:00:37]} 37. h4
{[%clk 00:30:27]} {[%emt 00:00:56]} Ba6 {[%clk 00:21:37]} {[%emt 00:00:07]} 38.
Rxa4 {[%clk 00:30:33]} {[%emt 00:00:23]} Kxb7 {[%clk 00:22:03]} {[%emt
00:00:05]} 39. h5 {[%clk 00:30:23]} {[%emt 00:00:40]} Bb5 {[%clk 00:21:50]}
{[%emt 00:00:43]} 40. Rb4 {[%clk 00:30:40]} {[%emt 00:00:12]} Ka6 {[%clk
00:22:18]} {[%emt 00:00:03]} 41. h6 {[%clk 00:30:40]} {[%emt 00:00:29]} Rh8
{[%emt 00:00:03]} 42. Rh4 {[%clk 00:30:46]} {[%emt 00:00:22]} 1-0

[Event "Latvijas 2022. gada jauniešu čempionāta fināls"]
[Site "Riga, Latvia"]
[Date "2022.06.15"]
[Round "7.26"]
[White "Freibergs, Andrejs"]
[Black "Krasilnikovs, Aleksandrs"]
[Result "1/2-1/2"]
[TimeControl "3600+30"]
[WhiteElo "1526"]
[BlackElo "1339"]

1. e4 {[%clk 01:00:58]} {[%emt 00:00:01]} c6 {[%clk 01:00:51]} {[%emt
00:00:10]} 2. d4 {[%clk 01:01:20]} {[%emt 00:00:08]} d5 {[%clk 01:01:16]}
{[%emt 00:00:04]} 3. Nc3 {[%clk 01:01:43]} {[%emt 00:00:07]} dxe4 {[%clk
01:01:31]} {[%emt 00:00:15]} 4. Nxe4 {[%clk 01:02:10]} {[%emt 00:00:04]} Bf5
{[%clk 01:01:49]} {[%emt 00:00:12]} 5. Nc5 {[%clk 01:02:09]} {[%emt 00:00:31]}
b6 {[%clk 01:00:51]} {[%emt 00:01:28]} 6. Nb3 {[%clk 01:02:32]} {[%emt
00:00:07]} Nf6 {[%clk 01:01:12]} {[%emt 00:00:09]} 7. Nf3 {[%clk 01:02:36]}
{[%emt 00:00:26]} e6 {[%clk 01:01:18]} {[%emt 00:00:23]} 8. g3 {[%clk
01:02:47]} {[%emt 00:00:20]} Bd6 {[%clk 00:59:48]} {[%emt 00:01:59]} 9. Bg2
{[%clk 01:02:54]} {[%emt 00:00:23]} O-O {[%clk 00:59:44]} {[%emt 00:00:35]} 10.
O-O {[%clk 01:02:35]} {[%emt 00:00:50]} Qc7 {[%clk 00:58:57]} {[%emt 00:01:16]}
11. Qe2 {[%clk 01:02:28]} {[%emt 00:00:38]} Nbd7 {[%clk 00:58:36]} {[%emt
00:00:50]} 12. c4 {[%clk 01:00:15]} {[%emt 00:02:43]} Rac8 {[%clk 00:57:07]}
{[%emt 00:01:58]} 13. Be3 {[%clk 00:56:08]} {[%emt 00:04:38]} Rfe8 {[%clk
00:53:13]} {[%emt 00:04:23]} 14. Rfd1 {[%clk 00:54:42]} {[%emt 00:01:56]} Qb8
{[%clk 00:52:39]} {[%emt 00:01:04]} 15. Nc1 {[%clk 00:48:45]} {[%emt 00:06:28]}
e5 {[%clk 00:48:01]} {[%emt 00:05:07]} 16. dxe5 {[%clk 00:46:04]} {[%emt
00:03:12]} Nxe5 {[%clk 00:47:24]} {[%emt 00:01:06]} 17. Nxe5 {[%clk 00:45:57]}
{[%emt 00:00:38]} Bxe5 {[%clk 00:47:46]} {[%emt 00:00:07]} 18. Nd3 {[%clk
00:46:05]} {[%emt 00:00:23]} Bd4 {[%clk 00:45:50]} {[%emt 00:02:24]} 19. Qf3
{[%clk 00:44:34]} {[%emt 00:02:03]} Bg4 {[%clk 00:44:37]} {[%emt 00:01:43]} 20.
Bxd4 {[%clk 00:43:36]} {[%emt 00:01:28]} Bxf3 {[%clk 00:44:11]} {[%emt
00:00:56]} 21. Bxf3 {[%clk 00:44:03]} {[%emt 00:00:03]} Qd6 {[%clk 00:40:46]}
{[%emt 00:03:53]} 22. Bc3 {[%clk 00:44:16]} {[%emt 00:00:19]} Ne4 {[%clk
00:39:27]} {[%emt 00:01:50]} 23. Ne5 {[%clk 00:42:03]} {[%emt 00:02:42]} Qe6
{[%clk 00:38:01]} {[%emt 00:01:54]} 24. Bxe4 {[%clk 00:42:01]} {[%emt
00:00:33]} f6 {[%clk 00:38:06]} {[%emt 00:00:24]} 25. Bxc6 {[%clk 00:39:25]}
{[%emt 00:03:07]} Rxc6 {[%clk 00:38:00]} {[%emt 00:00:36]} 26. Nxc6 {[%clk
00:39:51]} {[%emt 00:00:04]} Qxc6 {[%clk 00:38:27]} {[%emt 00:00:02]} 27. Re1
{[%clk 00:39:31]} {[%emt 00:00:51]} Rxe1+ {[%clk 00:37:53]} {[%emt 00:01:05]}
28. Rxe1 {[%clk 00:38:46]} {[%emt 00:00:06]} 1/2-1/2

[Event "Latvijas 2022. gada jauniešu čempionāta fināls"]
[Site "Riga, Latvia"]
[Date "2022.06.15"]
[Round "7.27"]
[White "Francs, Marats"]
[Black "Karasevics, Aleksandrs"]
[Result "1-0"]
[TimeControl "3600+30"]
[WhiteElo "1882"]
[BlackElo "1427"]

1. d4 {[%clk 01:00:03]} {[%emt 00:00:56]} d5 {[%clk 01:00:06]} {[%emt
00:00:55]} 2. Nf3 {[%clk 01:00:20]} {[%emt 00:00:12]} Nf6 {[%clk 01:00:10]}
{[%emt 00:00:26]} 3. c4 {[%clk 01:00:41]} {[%emt 00:00:08]} dxc4 {[%clk
01:00:29]} {[%emt 00:00:11]} 4. e3 {[%clk 01:00:51]} {[%emt 00:00:21]} Bg4
{[%clk 01:00:50]} {[%emt 00:00:08]} 5. Bxc4 {[%clk 01:00:51]} {[%emt 00:00:31]}
e6 {[%clk 01:00:46]} {[%emt 00:00:34]} 6. Nc3 {[%clk 01:00:38]} {[%emt
00:00:43]} a6 {[%clk 01:00:59]} {[%emt 00:00:17]} 7. a4 {[%clk 01:00:40]}
{[%emt 00:00:28]} Nc6 {[%clk 01:01:21]} {[%emt 00:00:08]} 8. h3 {[%clk
00:59:40]} {[%emt 00:01:30]} Bh5 {[%clk 01:01:40]} {[%emt 00:00:12]} 9. g4
{[%clk 00:59:50]} {[%emt 00:00:20]} Bg6 {[%clk 01:01:58]} {[%emt 00:00:11]} 10.
Qe2 {[%clk 00:58:40]} {[%emt 00:01:40]} Bb4 {[%clk 01:00:47]} {[%emt 00:01:40]}
11. Bd2 {[%clk 00:58:42]} {[%emt 00:00:28]} Qd7 {[%clk 00:51:09]} {[%emt
00:10:08]} 12. Rc1 {[%clk 00:54:47]} {[%emt 00:04:25]} Rd8 {[%clk 00:48:40]}
{[%emt 00:02:59]} 13. Rg1 {[%clk 00:46:33]} {[%emt 00:08:43]} Na5 {[%clk
00:46:47]} {[%emt 00:02:24]} 14. Ne5 {[%clk 00:45:14]} {[%emt 00:01:49]} Qe7
{[%clk 00:44:35]} {[%emt 00:02:43]} 15. h4 {[%clk 00:38:20]} {[%emt 00:07:24]}
Nxc4 {[%clk 00:30:19]} {[%emt 00:14:46]} 16. Qxc4 {[%clk 00:36:39]} {[%emt
00:02:11]} Bd6 {[%clk 00:30:18]} {[%emt 00:00:30]} 17. h5 {[%clk 00:34:45]}
{[%emt 00:02:24]} Be4 {[%clk 00:30:41]} {[%emt 00:00:07]} 18. g5 {[%clk
00:34:21]} {[%emt 00:00:54]} Bd5 {[%clk 00:30:11]} {[%emt 00:01:01]} 19. gxf6
{[%clk 00:34:37]} {[%emt 00:00:14]} gxf6 {[%clk 00:30:34]} {[%emt 00:00:07]} 20.
Nxd5 {[%clk 00:34:13]} {[%emt 00:00:54]} exd5 {[%clk 00:30:54]} {[%emt
00:00:10]} 21. Qxd5 {[%clk 00:34:07]} {[%emt 00:00:36]} Bxe5 {[%clk 00:29:56]}
{[%emt 00:01:28]} 22. Qxb7 {[%clk 00:33:58]} {[%emt 00:00:39]} Bxd4 {[%clk
00:29:30]} {[%emt 00:00:56]} 23. Rxc7 {[%clk 00:32:59]} {[%emt 00:01:29]} Qd6
{[%clk 00:25:20]} {[%emt 00:04:39]} 24. exd4 {[%clk 00:31:09]} {[%emt
00:02:21]} 1-0

[Event "Latvijas 2022. gada jauniešu čempionāta fināls"]
[Site "Riga, Latvia"]
[Date "2022.06.16"]
[Round "8.1"]
[White "Vingris, Mikelis"]
[Black "Germanovs, Georgijs"]
[Result "1/2-1/2"]
[TimeControl "3600+30"]
[WhiteElo "1781"]
[BlackElo "1750"]

1. e4 {[%clk 00:55:33]} {[%emt 00:06:35]} e6 {[%clk 01:00:21]} {[%emt
00:00:30]} 2. d4 {[%clk 00:55:43]} {[%emt 00:00:19]} d5 {[%clk 01:00:46]}
{[%emt 00:00:06]} 3. Nc3 {[%clk 00:56:00]} {[%emt 00:00:13]} Nf6 {[%clk
01:01:11]} {[%emt 00:00:05]} 4. e5 {[%clk 00:56:26]} {[%emt 00:00:04]} Nfd7
{[%clk 01:01:38]} {[%emt 00:00:03]} 5. f4 {[%clk 00:56:48]} {[%emt 00:00:08]}
c5 {[%clk 01:02:04]} {[%emt 00:00:04]} 6. Nf3 {[%clk 00:57:08]} {[%emt
00:00:09]} Nc6 {[%clk 01:02:30]} {[%emt 00:00:05]} 7. Be3 {[%clk 00:57:32]}
{[%emt 00:00:05]} cxd4 {[%clk 01:02:51]} {[%emt 00:00:09]} 8. Nxd4 {[%clk
00:57:43]} {[%emt 00:00:19]} Bb4 {[%clk 01:03:15]} {[%emt 00:00:07]} 9. a3
{[%clk 00:57:05]} {[%emt 00:01:08]} Bxc3+ {[%clk 01:03:13]} {[%emt 00:00:32]}
10. bxc3 {[%clk 00:57:30]} {[%emt 00:00:05]} O-O {[%clk 01:02:59]} {[%emt
00:00:44]} 11. Bd3 {[%clk 00:51:13]} {[%emt 00:06:47]} Nxd4 {[%clk 01:00:02]}
{[%emt 00:03:26]} 12. Bxd4 {[%clk 00:50:27]} {[%emt 00:01:17]} Qh4+ {[%clk
00:59:57]} {[%emt 00:00:35]} 13. g3 {[%clk 00:50:45]} {[%emt 00:00:12]} Qh3
{[%clk 01:00:20]} {[%emt 00:00:06]} 14. Qe2 {[%clk 00:48:11]} {[%emt 00:03:05]}
b6 {[%clk 01:00:10]} {[%emt 00:00:41]} 15. Qf1 {[%clk 00:41:25]} {[%emt
00:07:16]} Qxf1+ {[%clk 01:00:29]} {[%emt 00:00:10]} 16. Rxf1 {[%clk 00:41:45]}
{[%emt 00:00:09]} Nc5 {[%clk 00:59:27]} {[%emt 00:01:33]} 17. Kd2 {[%clk
00:41:20]} {[%emt 00:00:55]} Bd7 {[%clk 00:58:41]} {[%emt 00:01:16]} 18. Rfb1
{[%clk 00:39:18]} {[%emt 00:02:32]} Rac8 {[%clk 00:58:11]} {[%emt 00:00:59]} 19.
g4 {[%clk 00:37:44]} {[%emt 00:02:05]} Rc7 {[%clk 00:58:17]} {[%emt 00:00:25]}
20. h4 {[%clk 00:36:24]} {[%emt 00:01:49]} f6 {[%clk 00:57:00]} {[%emt
00:01:47]} 21. Rb4 {[%clk 00:35:30]} {[%emt 00:01:24]} Nb7 {[%clk 00:56:39]}
{[%emt 00:00:50]} 22. Rf1 {[%clk 00:31:06]} {[%emt 00:04:55]} Na5 {[%clk
00:56:31]} {[%emt 00:00:38]} 23. Rbb1 {[%clk 00:30:15]} {[%emt 00:01:21]} fxe5
{[%clk 00:54:17]} {[%emt 00:02:43]} 24. Bxe5 {[%clk 00:27:09]} {[%emt
00:03:37]} Nc4+ {[%clk 00:54:38]} {[%emt 00:00:10]} 25. Bxc4 {[%clk 00:27:02]}
{[%emt 00:00:36]} Rxc4 {[%clk 00:54:32]} {[%emt 00:00:37]} 26. Bd4 {[%clk
00:24:31]} {[%emt 00:03:01]} Ra4 {[%clk 00:54:25]} {[%emt 00:00:36]} 27. Ra1
{[%clk 00:23:33]} {[%emt 00:01:28]} e5 {[%clk 00:52:49]} {[%emt 00:02:07]}
1/2-1/2